Workbook

Sheet 1999_00-Deutsch (hidden)
A1: Asclepion-Meditec AG
A2: Kapitalflussrechnung
A3: für die Geschäftsjahre zum 30. September 2000 und 2001
G5: 1.95583
G6: 30. September | I6: 30. September
G7: 2000 | I7: 2001
G8: TDM | I8: TDM
A11: Cash Flow aus laufender Geschäftstätigkeit:
B12: Jahresüberschuss | G12: 3827 | I12: -14865
B13: Anpassung zur Überleitung des Jahresüberschusses/Jahresfehlbetrags
B14: zur Nettoveränderung der liquiden Mittel aus laufender Geschäftstätigkeit:
C15: Abschreibungen | G15: 2273 | I15: 2334
C16: Verluste /(Gewinne) aus Abgang von Sachanlagevermögen | G16: -72 | I16: 85
C17: Zahlungsunwirksame Erträge | G17: 0 | I17: =-(4418+5400+4271+794) -> -14883
C18: Zuführung zu Wertberichtigungen | G18: 0 | I18: 13190
C19: Auswirkung von Wechselkursänderungen | G19: -1815 | I19: 0
C20: Anpassung Ertragsteuern für Kosten im Zusammenhang mit dem Börsengang | G20: 5291 | I20: 0
C21: Latente Steuern | G21: -706 | I21: =-4271+505 -> -3766
C22: Veränderung bei Vermögensgegenständen und Verbindlichkeiten:
C23: Erhöhung der Forderungen an verbundene Unternehmen | D23: (Erhöhung) / Verringerung der Forderungen
E24: und Dritte | G24: -23032 | I24: -3319
C25: Erhöhung Vorräte | D25: Erhöhung Vorräte | G25: -1529 | I25: -8688
C26: (Erhöhung) / Verringerung der aktiven Rechnungs- | D26: (Erhöhung) / Verringerung der aktiven Rechnungs-
E27: abgrenzung und sonstiger Vermögensgegenstände | G27: -1432 | I27: -4835
C28: (Erhöhung) / Verringerung aktivierter Börseneinführungskosten | D28: Erhöhung aktivierter Börseneinführungskosten | G28: 500 | I28: 0
C29: Erhöhung / (Verringerung) der Verbindlichkeiten | D29: Erhöhung / (Verringerung) der Verbindlichkeiten
E30: an verbundene Unternehmen und Dritte | G30: 1616 | I30: =-523 -> -523
C31: Erhöhung / (Verringerung) der Rückstellungen, passiven | D31: Erhöhung / (Verringerung) der Rückstellungen, passiven
E32: Rechnungsabgrenzungen und sonstigen Verbindlichkeiten | G32: 3088 | I32: 1311
E33: Gesamte Anpassungen | G33: =SUM(G15:G32)-1 -> -15819 | I33: =SUM(I15:I32) -> -19094
D34: Netto-Kapitalzufluss (-abfluss) aus laufender Geschäftstätigkeit | E34: Netto-Kapitalabfluss aus laufender Geschäftstätigkeit | G34: =+G12+G33 -> -11992 | I34: =+I12+I33 -> -33959
A35: Cash Flow aus der Investitionstätigkeit:
B36: Erwerb von Sachanlagevermögen | G36: -2255 | I36: -17862
B37: Erlöse aus dem Verkauf von Sachanlagevermögen | G37: 125 | I37: 14
B38: Erwerb von Minderheitenbeteiligungen an nahestehenden Unternehmen | G38: -3548 | I38: -1301
B39: Gewährung von Darlehen | G39: -113 | I39: -6984
E40: Netto-Kapitalabfluss aus Investitionstätigkeit | G40: =SUM(G36:G39) -> -5791 | I40: =SUM(I36:I39) -> -26133
A41: Cash Flow aus Finanzierungstätigkeit:
B42: Einnahmen aus der Ausgabe von Stückaktien | G42: 113994 | I42: 0
B43: Aufnahme kurzfristiger Kredite | G43: 86 | I43: 3162
B44: Rückzahlung kurzfristiger Kredite | G44: -29386 | I44: -86
B45: Aufnahme langfristiger Kredite | G45: 125 | I45: 10500
B46: Rückzahlung langfristiger Kredite | G46: -1914 | I46: -90
B47: Rückzahlungen unter Leasingverträgen | G47: -80 | I47: -686
B48: Erlöse aus Sale/Leaseback Transaktion | G48: 980 | I48: 2681
E49: Netto-Kapitalzufluss aus Finanzierungstätigkeit | G49: =SUM(G42:G48) -> 83805 | I49: =SUM(I42:I48) -> 15481
A50: Auswirkung von Wechselkursänderungen | G50: -10 | I50: 23
A51: Netto-Erhöhung (Verringerung) der liquiden Mittel | G51: =+G34+G40+G49+G50-1 -> 66011 | I51: =+I34+I40+I49+I50 -> -44588
A52: Liquide Mittel am Jahresbeginn | G52: 168 | I52: 66179
A53: Liquide Mittel am Jahresende | G53: =+G51+G52 -> 66179 | I53: =+I51+I52 -> 21591
A55: Ergänzende Angaben zum Cash Flow:
B56: gezahlte Zinsen | G56: 361.9946519 | I56: 850
B57: gezahlte Steuern vom Einkommen und Ertrag | G57: 1012.357925 | I57: 1265
A59: Nicht zahlungswirksame Investitions- und Finanzierungstätigkeiten
B60: Umwandlung der Kapitalrücklage in Grundkapital | G60: 3748.792073 | I60: 0
B61: Umwandlung Verbindlichkeiten für deferred shares in Grundkapital | G61: 199.9151255 | I61: 0
B62: Umwandlung Verbindlichkeiten für deferred shares in Kapitalrücklage | G62: 399.8302511 | I62: 0
B63: Umbuchung von Vorratsvermögen in Sachanlagevermögen | G63: 161 | I63: 369
B64: Umbuchung von Forderungen aus Lieferungen und Leistungen
C65: in Finanzanlagen | G65: 0 | I65: 6260
A68: Auf die nachfolgenden Erläuterungen im Anhang wird verwiesen

Sheet CF_AR (hidden)
A1: Carl Zeiss Meditec AG
A2: selected positions
A3: Consolidated statement of cash flow (US GAAP)
F5: 1. October 2001 - | H5: 1. October 2002 -
F6: 30. June 2002 | H6: 30. June 2003
F7: Tsd. Euro | H7: Tsd. Euro
A10: Cash flow from operating activities
C11: Net income | F11: =+#REF! ->  | H11: =+#REF! -> 
C12: Loss on disposal of discontinued operations | F12: =+#REF! ->  | H12: =+#REF! -> 
C13: Depreciation and amortisation | F13: =+#REF! ->  | H13: =+#REF! -> 
C14: Trade accounts receivable | F14: =+#REF! ->  | H14: =+#REF! -> 
C15: Inventories | F15: =+#REF! ->  | H15: =+#REF! -> 
C16: Trade accounts payable | F16: =+#REF! ->  | H16: =+#REF! -> 
C17: Accrued tax expenses | D17: Erhöhung Vorräte | F17: =+#REF! ->  | H17: =+#REF! -> 
C18: Other accrued expenses and liabilities | D18: (Erhöhung) / Verringerung der aktiven Rechnungs- | F18: =+#REF! ->  | H18: =+#REF! -> 
A20: Cash flow from investing activities | F20: =+#REF! ->  | H20: =+#REF! -> 
A22: Cash flow from financing activities
B23: Proceeds from issuance of short-term debt from related parties | F23: =+#REF! ->  | H23: =+#REF! -> 
B24: Increase / (decrease) in liabilities due to Treasury | F24: =+#REF! ->  | H24: =+#REF! -> 
B25: (Increase) / decrease in accounts receivable due to Treasury | F25: =+#REF! ->  | H25: =+#REF! -> 
A27: Net increase in cash (compared to Oct 1) | F27: =+#REF! ->  | H27: =+#REF! -> 

Sheet Cash flow EN
A2: Carl Zeiss Meditec AG
A3: Consolidated statement of cash flows (IFRS) for the period from 1 Oct 14 to 30 Sep 15
G5: 2014/15 | I5: 2013/14
G6: 1 Oct 14 to 30 Sep 15 | I6: 1 Oct 13 to 30 Sep 14
F7: Note
G8: k € | I8: k €
A10: Cash flows from operating activities:
B12: Net income | G12: 65561 | I12: 79157
B14: Adjustments to reconcile net income to net cash provided by / (used in)
B15: operating activities
C17: Income tax expenses | F17: (7) | G17: 36159 | I17: 35380
C18: Result from carve-out of microscopy business of Optronik A.S. | G18: 0 | I18: -146
C19: Interest income / expenses | F19: (6) | G19: 1476 | I19: 1011
C20: Results from investments accounted for using the equity method | F20: (6) | G20: 11493 | I20: 0
C21: Result from other participations | F21: (6) | G21: -26 | I21: -18
C22: Depreciation and amortisation | F22: (11) (12) | G22: 19162 | I22: 17953
C23: Appreciation and write-ups | F23: (11) | G23: 0 | I23: -272
C24: Gains / losses on disposal of fixed assets | G24: -84 | I24: 1550
C25: Dividends received | G25: 26 | I25: 18
C26: Interest received | G26: 1493 | I26: 1679
C27: Interest paid | G27: -1433 | I27: -1327
C28: Income tax reimbursement | G28: 3476 | I28: 3369
C29: Income taxes paid | G29: -40133 | I29: -52125
C30: Other material non-cash expense and income | F30: (6) | G30: 7401 | I30: -1327
B32: Changes in working capital:
C34: Trade receivables | F34: (17) | G34: -36255 | I34: 15981
C35: Inventories | F35: (16) | G35: -9890 | I35: -22086
C36: Other assets | F36: (15) (18) (19) | G36: -7973 | I36: -2716
C37: Trade payables | G37: 13795 | I37: -7497
C38: Provisions and financial liabilities | F38: (22) (23) (25) | G38: -11979 | I38: -2002
C39: Other liabilities | F39: (26) | G39: 4475 | I39: -3477
B41: Total adjustments | G41: -8817 | I41: -16052
B42: Net cash provided by operating activities | G42: 56744 | I42: 63105
A44: Cash flows from investing activities:
B46: Investment in property, plant and equipment | F46: (12) | G46: -9772 | I46: -11141
B47: Investment in intangible assets | F47: (11) | G47: -7001 | I47: -6980
B48: Proceeds from fixed assets | G48: 742 | I48: 398
B49: Purchase of investments accounted for using the equity method | F49: (13) | G49: -9240 | I49: 0
B50: Payments for loans to investments acc. for using the equity method | F50: (13) | G50: -7479 | I50: 0
B51: Payments for other loans | F51: (27) | G51: -1356 | I51: 0
B52: Proceeds from fixed term deposits | F52: (33) | G52: 110000 | I52: 140000
B53: Investments in fixed term deposits | F53: (33) | G53: -110000 | I53: -110000
B54: Acquisition of IOL/ OVD-business IMEX Clinic S.L., Spain | G54: 0 | I54: -1939
B55: Acquisition of consolidated companies / businesses, net of cash acquired | F55: (3)
C56: (Optronik A.S., Turkey: | G56: -1067 | I56: -10800
C57: Aaren Scientific Inc., USA:) | G57: 0 | I57: -51183
B58: Carve-out of microscopy business of Optronik A.S. | G58: 0 | I58: 2208
B60: Net cash used in investing activities | G60: -35173 | I60: -49437
A62: Cash flows from financing activities:
B63: Proceeds from/(repayment of) short-term debt | G63: -929 | I63: -505
B64: Proceeds from/(repayment of) noncurrent financial liabilities | F64: (24) | G64: -480 | I64: -262
B65: (Increase) / decrease in treasury receivables | F65: (2u) (33) | G65: -10209 | I65: 30484
B66: Increase / (decrease) in treasury payables | F66: (2u) (33) | G66: 27378 | I66: 1163
B67: Change of leasing liabilities | F67: (28) | G67: -2526 | I67: -1814
B68: Dividend payments to shareholders of Carl Zeiss Meditec AG | F68: (9) | G68: -32524 | I68: -36589
B70: Net cash provided by/ (used in) financing activities | G70: -19290 | I70: -7523
A72: Effect of exchange rate fluctuation on cash and cash equivalents | G72: 33 | I72: -1704
A73: Net increase / (decrease) in cash and cash equivalents | G73: 2314 | I73: 4441
A74: Cash and cash equivalents, beginning of reporting period | F74: (20) | G74: 10727 | I74: 6286
A75: Cash and cash equivalents, end of reporting period | F75: (20) | G75: 13041 | I75: 10727
